[Event "Titled Tuesday Blitz February 28 Early 2023"]
[White "Aradhya, Garg"]
[Black "Aldokhin, Ivan"]
[WhiteFideId "25006746"]
[BlackFideId "24115720"]
[WhiteElo "2278"]
[BlackElo "2322"]
[Result "1-0"]
[Round "10"]
[TimeControl "180+2"]
[Date "2023.02.28"]
[WhiteClock "0:00:35"]
[BlackClock "0:00:02"]

1. d4 {[%clk 0:03:00]}  Nf6 {[%clk 0:02:55]} 2. c4 {[%clk 0:02:59]}  g6 {[%clk 0:02:56]} 3. Nf3 {[%clk 0:02:59]}  Bg7 {[%clk 0:02:56]} 4. g3 {[%clk 0:02:59]}  d6 {[%clk 0:02:57]} 5. Bg2 {[%clk 0:02:59]}  O-O {[%clk 0:02:57]} 6. Nc3 {[%clk 0:03:00]}  Bf5 {[%clk 0:02:58]} 7. Nh4 {[%clk 0:02:56]}  Bc8 {[%clk 0:02:57]} 8. O-O {[%clk 0:02:56]}  e5 {[%clk 0:02:56]} 9. Nf3 {[%clk 0:02:53]}  e4 {[%clk 0:02:44]} 10. Ng5 {[%clk 0:02:51]}  e3 {[%clk 0:02:43]} 11. Bxe3 {[%clk 0:02:51]}  Nc6 {[%clk 0:02:38]} 12. h3 {[%clk 0:02:50]}  Bd7 {[%clk 0:02:32]} 13. Nf3 {[%clk 0:02:48]}  Re8 {[%clk 0:02:27]} 14. Qd2 {[%clk 0:02:47]}  Qc8 {[%clk 0:02:19]} 15. Kh2 {[%clk 0:02:46]}  Bf5 {[%clk 0:02:19]} 16. Rac1 {[%clk 0:02:35]}  a5 {[%clk 0:02:13]} 17. d5 {[%clk 0:02:34]}  Nb4 {[%clk 0:02:00]} 18. Nd4 {[%clk 0:02:31]}  Bd7 {[%clk 0:02:00]} 19. Bh6 {[%clk 0:02:30]}  Bh8 {[%clk 0:02:00]} 20. e4 {[%clk 0:02:25]}  Na6 {[%clk 0:01:49]} 21. Rce1 {[%clk 0:02:19]}  Nc5 {[%clk 0:01:44]} 22. Nb3 {[%clk 0:02:19]}  b6 {[%clk 0:01:37]} 23. Nxc5 {[%clk 0:02:16]}  bxc5 {[%clk 0:01:37]} 24. a4 {[%clk 0:02:16]}  Rb8 {[%clk 0:01:36]} 25. Nb5 {[%clk 0:02:17]}  Bxb5 {[%clk 0:01:29]} 26. axb5 {[%clk 0:02:03]}  Nd7 {[%clk 0:01:29]} 27. Ra1 {[%clk 0:01:43]}  Nb6 {[%clk 0:01:22]} 28. Qc2 {[%clk 0:01:43]}  a4 {[%clk 0:01:20]} 29. Ra3 {[%clk 0:01:42]}  Qd8 {[%clk 0:01:17]} 30. b3 {[%clk 0:01:36]}  axb3 {[%clk 0:01:11]} 31. Qxb3 {[%clk 0:01:37]}  Qf6 {[%clk 0:01:08]} 32. h4 {[%clk 0:01:31]}  Ra8 {[%clk 0:01:05]} 33. Rxa8 {[%clk 0:01:10]}  Rxa8 {[%clk 0:01:05]} 34. Be3 {[%clk 0:01:10]}  Qb2 {[%clk 0:00:56]} 35. Qd3 {[%clk 0:01:06]}  Ra3 {[%clk 0:00:53]} 36. Qd1 {[%clk 0:01:05]}  Nxc4 {[%clk 0:00:50]} 37. Qg4 {[%clk 0:01:06]}  Be5 {[%clk 0:00:14]} 38. Bh6 {[%clk 0:01:03]}  Ra8 {[%clk 0:00:06]} 39. Qd7 {[%clk 0:00:56]}  Bg7 {[%clk 0:00:06]} 40. Bxg7 {[%clk 0:00:52]}  Kxg7 {[%clk 0:00:07]} 41. Qxc7 {[%clk 0:00:48]}  Qxb5 {[%clk 0:00:06]} 42. e5 {[%clk 0:00:48]}  Nxe5 {[%clk 0:00:03]} 43. Qxd6 {[%clk 0:00:48]}  Re8 {[%clk 0:00:03]} 44. Kh1 {[%clk 0:00:42]}  Nd3 {[%clk 0:00:02]} 45. Qc7 {[%clk 0:00:38]}  c4 {[%clk 0:00:02]} 46. d6 {[%clk 0:00:38]}  Qc5 {[%clk 0:00:02]} 47. d7 {[%clk 0:00:35]} 1-0


[Site "https://www.chess.com"]

[Event "Titled Tuesday Blitz February 28 Early 2023"]
[White "Wagner, Dennis"]
[Black "Bews, Steven"]
[WhiteFideId "24650684"]
[BlackFideId "2400529"]
[WhiteElo "2470"]
[BlackElo "2595"]
[Result "1/2-1/2"]
[Round "10"]
[TimeControl "180+2"]
[Date "2023.02.28"]
[WhiteClock "0:00:15"]
[BlackClock "0:00:23"]

1. c4 {[%clk 0:03:00]}  Nf6 {[%clk 0:02:59]} 2. Nc3 {[%clk 0:03:00]}  e6 {[%clk 0:02:57]} 3. Nf3 {[%clk 0:03:00]}  Bb4 {[%clk 0:02:57]} 4. Qb3 {[%clk 0:02:56]}  c5 {[%clk 0:02:54]} 5. e3 {[%clk 0:02:44]}  O-O {[%clk 0:02:54]} 6. a3 {[%clk 0:02:36]}  Bxc3 {[%clk 0:02:54]} 7. Qxc3 {[%clk 0:02:35]}  b6 {[%clk 0:02:53]} 8. b4 {[%clk 0:02:35]}  d6 {[%clk 0:02:53]} 9. Bb2 {[%clk 0:02:36]}  Bb7 {[%clk 0:02:53]} 10. Be2 {[%clk 0:02:35]}  Nbd7 {[%clk 0:02:53]} 11. O-O {[%clk 0:02:35]}  Qe7 {[%clk 0:02:54]} 12. d4 {[%clk 0:02:32]}  Ne4 {[%clk 0:02:53]} 13. Qc2 {[%clk 0:02:32]}  f5 {[%clk 0:02:53]} 14. Rad1 {[%clk 0:02:27]}  Ng5 {[%clk 0:02:46]} 15. dxc5 {[%clk 0:02:14]}  Nxf3+ {[%clk 0:02:39]} 16. Bxf3 {[%clk 0:02:14]}  Bxf3 {[%clk 0:02:37]} 17. gxf3 {[%clk 0:02:15]}  dxc5 {[%clk 0:02:30]} 18. Kh1 {[%clk 0:02:13]}  Rad8 {[%clk 0:02:29]} 19. Rg1 {[%clk 0:02:12]}  Nf6 {[%clk 0:02:29]} 20. Rxd8 {[%clk 0:01:48]}  Rxd8 {[%clk 0:02:29]} 21. bxc5 {[%clk 0:01:48]}  bxc5 {[%clk 0:02:28]} 22. Qc3 {[%clk 0:01:44]}  Kf8 {[%clk 0:01:40]} 23. Qe5 {[%clk 0:01:37]}  Qd6 {[%clk 0:01:34]} 24. Kg2 {[%clk 0:01:15]}  Qxe5 {[%clk 0:01:22]} 25. Bxe5 {[%clk 0:01:16]}  Rd3 {[%clk 0:01:22]} 26. a4 {[%clk 0:01:08]}  Nd7 {[%clk 0:01:21]} 27. Bc7 {[%clk 0:00:39]}  Rb3 {[%clk 0:01:15]} 28. a5 {[%clk 0:00:34]}  Ke7 {[%clk 0:01:13]} 29. Rd1 {[%clk 0:00:32]}  Rb4 {[%clk 0:01:10]} 30. Rd6 {[%clk 0:00:25]}  Rxc4 {[%clk 0:00:47]} 31. Ra6 {[%clk 0:00:25]}  Ra4 {[%clk 0:00:34]} 32. Rxa7 {[%clk 0:00:25]}  c4 {[%clk 0:00:34]} 33. Be5 {[%clk 0:00:25]}  g6 {[%clk 0:00:32]} 34. f4 {[%clk 0:00:24]}  Ra3 {[%clk 0:00:31]} 35. Bd4 {[%clk 0:00:23]}  Kd6 {[%clk 0:00:26]} 36. a6 {[%clk 0:00:16]}  c3 {[%clk 0:00:25]} 37. Ra8 {[%clk 0:00:16]}  c2 {[%clk 0:00:22]} 38. Rc8 {[%clk 0:00:15]}  Rxa6 {[%clk 0:00:22]} 39. Rxc2 {[%clk 0:00:15]}  Rc6 {[%clk 0:00:22]} 40. Be5+ {[%clk 0:00:14]}  Nxe5 {[%clk 0:00:20]} 41. fxe5+ {[%clk 0:00:15]}  Kd5 {[%clk 0:00:20]} 42. Rxc6 {[%clk 0:00:14]}  Kxc6 {[%clk 0:00:21]} 43. Kf3 {[%clk 0:00:13]}  g5 {[%clk 0:00:21]} 44. h4 {[%clk 0:00:13]}  h6 {[%clk 0:00:21]} 45. hxg5 {[%clk 0:00:13]}  hxg5 {[%clk 0:00:22]} 46. e4 {[%clk 0:00:11]}  Kc5 {[%clk 0:00:22]} 47. exf5 {[%clk 0:00:12]}  exf5 {[%clk 0:00:22]} 48. Kg3 {[%clk 0:00:10]}  Kd5 {[%clk 0:00:17]} 49. f4 {[%clk 0:00:11]}  gxf4+ {[%clk 0:00:14]} 50. Kxf4 {[%clk 0:00:12]}  Ke6 {[%clk 0:00:15]} 51. Kf3 {[%clk 0:00:12]}  Kxe5 {[%clk 0:00:16]} 52. Ke3 {[%clk 0:00:12]}  f4+ {[%clk 0:00:17]} 53. Kf3 {[%clk 0:00:12]}  Kf5 {[%clk 0:00:18]} 54. Kf2 {[%clk 0:00:13]}  Ke4 {[%clk 0:00:18]} 55. Ke2 {[%clk 0:00:13]}  f3+ {[%clk 0:00:19]} 56. Kf2 {[%clk 0:00:14]}  Kf4 {[%clk 0:00:20]} 57. Kf1 {[%clk 0:00:15]}  Ke3 {[%clk 0:00:21]} 58. Ke1 {[%clk 0:00:15]}  f2+ {[%clk 0:00:22]} 59. Kf1 {[%clk 0:00:15]}  Kf3 {[%clk 0:00:23]} 1/2-1/2


[Site "https://www.chess.com"]

[Event "Titled Tuesday Blitz February 28 Early 2023"]
[White "Odegov, Artem"]
[Black "Rostomyan, Mikayel"]
[WhiteFideId "34183644"]
[BlackFideId "13313754"]
[WhiteElo "2300"]
[BlackElo "2009"]
[Result "0-1"]
[Round "10"]
[TimeControl "180+2"]
[Date "2023.02.28"]
[WhiteClock "0:00:46"]
[BlackClock "0:01:06"]

1. d4 {[%clk 0:03:00]}  Nf6 {[%clk 0:02:58]} 2. c4 {[%clk 0:03:00]}  c5 {[%clk 0:02:56]} 3. d5 {[%clk 0:03:01]}  b5 {[%clk 0:02:55]} 4. cxb5 {[%clk 0:03:02]}  a6 {[%clk 0:02:52]} 5. b6 {[%clk 0:03:02]}  e6 {[%clk 0:02:50]} 6. Nc3 {[%clk 0:03:02]}  exd5 {[%clk 0:02:47]} 7. Nxd5 {[%clk 0:03:03]}  Nxd5 {[%clk 0:02:47]} 8. Qxd5 {[%clk 0:03:04]}  Nc6 {[%clk 0:02:47]} 9. e4 {[%clk 0:03:05]}  Be7 {[%clk 0:02:42]} 10. Bc4 {[%clk 0:03:04]}  O-O {[%clk 0:02:42]} 11. Nf3 {[%clk 0:03:05]}  Rb8 {[%clk 0:02:39]} 12. O-O {[%clk 0:03:05]}  Rxb6 {[%clk 0:02:38]} 13. Qh5 {[%clk 0:03:04]}  Nd4 {[%clk 0:02:16]} 14. Nxd4 {[%clk 0:02:55]}  cxd4 {[%clk 0:02:17]} 15. Rd1 {[%clk 0:02:52]}  g6 {[%clk 0:02:03]} 16. Qe2 {[%clk 0:02:32]}  Bf6 {[%clk 0:01:56]} 17. e5 {[%clk 0:01:53]}  Re8 {[%clk 0:01:55]} 18. f4 {[%clk 0:01:53]}  d6 {[%clk 0:01:29]} 19. Rxd4 {[%clk 0:01:48]}  Qc7 {[%clk 0:01:29]} 20. Rxd6 {[%clk 0:01:06]}  Rxd6 {[%clk 0:01:25]} 21. exd6 {[%clk 0:00:59]}  Qc5+ {[%clk 0:01:24]} 22. Kf1 {[%clk 0:00:54]}  Rxe2 {[%clk 0:01:22]} 23. Bxe2 {[%clk 0:00:55]}  Qxd6 {[%clk 0:01:21]} 24. Be3 {[%clk 0:00:54]}  Qe7 {[%clk 0:01:16]} 25. Kf2 {[%clk 0:00:49]}  Bb7 {[%clk 0:01:15]} 26. Rc1 {[%clk 0:00:46]}  Bxb2 {[%clk 0:01:13]} 27. Rb1 {[%clk 0:00:46]}  Ba3 {[%clk 0:01:06]} 0-1


[Site "https://www.chess.com"]

[Event "Titled Tuesday Blitz February 28 Early 2023"]
[White "Nazari, Arad"]
[Black "benny_aizenberg"]
[WhiteFideId "12577324"]
[WhiteElo "2242"]
[BlackElo "2584"]
[Result "0-1"]
[Round "10"]
[TimeControl "180+2"]
[Date "2023.02.28"]
[WhiteClock "0:00:04"]
[BlackClock "0:00:05"]

1. e4 {[%clk 0:03:00]}  c5 {[%clk 0:02:59]} 2. Nf3 {[%clk 0:03:01]}  e6 {[%clk 0:02:58]} 3. b3 {[%clk 0:03:00]}  a6 {[%clk 0:02:56]} 4. Bb2 {[%clk 0:02:59]}  Nc6 {[%clk 0:02:56]} 5. c4 {[%clk 0:02:59]}  Qc7 {[%clk 0:02:53]} 6. Qe2 {[%clk 0:02:57]}  Nge7 {[%clk 0:02:23]} 7. e5 {[%clk 0:02:43]}  Nf5 {[%clk 0:02:16]} 8. g4 {[%clk 0:02:37]}  Nfd4 {[%clk 0:02:16]} 9. Bxd4 {[%clk 0:02:37]}  cxd4 {[%clk 0:02:16]} 10. Bg2 {[%clk 0:02:25]}  Nb4 {[%clk 0:02:04]} 11. d3 {[%clk 0:02:22]}  Bc5 {[%clk 0:01:54]} 12. a3 {[%clk 0:02:18]}  Nc6 {[%clk 0:01:55]} 13. Nbd2 {[%clk 0:02:17]}  a5 {[%clk 0:01:53]} 14. O-O {[%clk 0:02:07]}  O-O {[%clk 0:01:53]} 15. Rfe1 {[%clk 0:01:45]}  b6 {[%clk 0:01:34]} 16. Ne4 {[%clk 0:01:41]}  Be7 {[%clk 0:01:19]} 17. Ng3 {[%clk 0:01:28]}  Bb7 {[%clk 0:01:16]} 18. Nd2 {[%clk 0:01:22]}  Bg5 {[%clk 0:01:03]} 19. Nf3 {[%clk 0:01:00]}  Bf4 {[%clk 0:01:00]} 20. Nh5 {[%clk 0:00:59]}  g5 {[%clk 0:00:16]} 21. Nxf4 {[%clk 0:00:45]}  gxf4 {[%clk 0:00:16]} 22. Qd2 {[%clk 0:00:41]}  f6 {[%clk 0:00:15]} 23. Qxf4 {[%clk 0:00:40]}  fxe5 {[%clk 0:00:14]} 24. Qg5+ {[%clk 0:00:40]}  Kh8 {[%clk 0:00:14]} 25. Nxe5 {[%clk 0:00:40]}  Nxe5 {[%clk 0:00:14]} 26. Rxe5 {[%clk 0:00:31]}  Bxg2 {[%clk 0:00:13]} 27. Kxg2 {[%clk 0:00:32]}  Rf7 {[%clk 0:00:12]} 28. Rf1 {[%clk 0:00:23]}  Rg8 {[%clk 0:00:12]} 29. Qh5 {[%clk 0:00:21]}  Rxg4+ {[%clk 0:00:12]} 30. Kh1 {[%clk 0:00:12]}  Qc6+ {[%clk 0:00:10]} 31. Re4 {[%clk 0:00:11]}  Rxe4 {[%clk 0:00:09]} 32. dxe4 {[%clk 0:00:11]}  Qxe4+ {[%clk 0:00:09]} 33. f3 {[%clk 0:00:12]}  Qf4 {[%clk 0:00:07]} 34. Kg2 {[%clk 0:00:08]}  d3 {[%clk 0:00:07]} 35. Rf2 {[%clk 0:00:04]}  d2 {[%clk 0:00:06]} 36. Rf1 {[%clk 0:00:02]}  Rg7+ {[%clk 0:00:04]} 37. Kf2 {[%clk 0:00:02]}  Qd4+ {[%clk 0:00:03]} 38. Ke2 {[%clk 0:00:03]}  d1=Q+ {[%clk 0:00:04]} 39. Rxd1 {[%clk 0:00:03]}  Rg2+ {[%clk 0:00:04]} 40. Kf1 {[%clk 0:00:04]}  Qf2# {[%clk 0:00:05]} 0-1


[Site "https://www.chess.com"]

[Event "Titled Tuesday Blitz February 28 Early 2023"]
[White "Domingo Nunez, Alejandro"]
[Black "Kucuksari, Kaan"]
[WhiteFideId "22245561"]
[BlackFideId "6380166"]
[WhiteElo "2230"]
[BlackElo "2364"]
[Result "0-1"]
[Round "10"]
[TimeControl "180+2"]
[Date "2023.02.28"]
[WhiteClock "0:00:02"]
[BlackClock "0:00:14"]

1. e4 {[%clk 0:03:00]}  Nf6 {[%clk 0:02:59]} 2. e5 {[%clk 0:02:59]}  Nd5 {[%clk 0:03:00]} 3. c4 {[%clk 0:02:59]}  Nb6 {[%clk 0:02:59]} 4. d4 {[%clk 0:03:00]}  d6 {[%clk 0:03:00]} 5. f4 {[%clk 0:02:59]}  dxe5 {[%clk 0:03:00]} 6. fxe5 {[%clk 0:02:58]}  Nc6 {[%clk 0:03:00]} 7. Be3 {[%clk 0:02:56]}  Bf5 {[%clk 0:03:00]} 8. Nc3 {[%clk 0:02:55]}  e6 {[%clk 0:03:01]} 9. Nf3 {[%clk 0:02:53]}  Be7 {[%clk 0:03:01]} 10. Be2 {[%clk 0:02:53]}  O-O {[%clk 0:03:02]} 11. O-O {[%clk 0:02:53]}  f6 {[%clk 0:03:01]} 12. exf6 {[%clk 0:02:52]}  Bxf6 {[%clk 0:03:02]} 13. Qd2 {[%clk 0:02:52]}  Qe7 {[%clk 0:03:01]} 14. Rad1 {[%clk 0:02:50]}  Rad8 {[%clk 0:03:00]} 15. Kh1 {[%clk 0:02:50]}  Bg4 {[%clk 0:02:56]} 16. Ne4 {[%clk 0:02:40]}  Bxf3 {[%clk 0:02:51]} 17. Nxf6+ {[%clk 0:02:40]}  gxf6 {[%clk 0:02:49]} 18. Rxf3 {[%clk 0:02:36]}  Kh8 {[%clk 0:02:43]} 19. Rh3 {[%clk 0:02:13]}  Rg8 {[%clk 0:02:37]} 20. Bd3 {[%clk 0:02:09]}  Rg7 {[%clk 0:02:35]} 21. Qc3 {[%clk 0:02:05]}  f5 {[%clk 0:02:21]} 22. Bc2 {[%clk 0:00:56]}  Qb4 {[%clk 0:02:09]} 23. Bb3 {[%clk 0:00:41]}  Qxc3 {[%clk 0:02:03]} 24. bxc3 {[%clk 0:00:41]}  Na5 {[%clk 0:02:04]} 25. d5 {[%clk 0:00:37]}  Naxc4 {[%clk 0:01:40]} 26. Bxb6 {[%clk 0:00:33]}  Nxb6 {[%clk 0:01:37]} 27. dxe6 {[%clk 0:00:33]}  Rxd1+ {[%clk 0:01:37]} 28. Bxd1 {[%clk 0:00:34]}  Nd5 {[%clk 0:01:30]} 29. Bb3 {[%clk 0:00:31]}  c6 {[%clk 0:01:20]} 30. c4 {[%clk 0:00:18]}  Nf4 {[%clk 0:01:15]} 31. Re3 {[%clk 0:00:18]}  Re7 {[%clk 0:01:06]} 32. c5 {[%clk 0:00:18]}  Kg7 {[%clk 0:01:05]} 33. g3 {[%clk 0:00:18]}  Ng6 {[%clk 0:01:03]} 34. Rd3 {[%clk 0:00:16]}  Nf8 {[%clk 0:00:58]} 35. Rd8 {[%clk 0:00:12]}  a6 {[%clk 0:00:46]} 36. Kg2 {[%clk 0:00:10]}  Nxe6 {[%clk 0:00:42]} 37. Bxe6 {[%clk 0:00:11]}  Rxe6 {[%clk 0:00:42]} 38. Rd7+ {[%clk 0:00:11]}  Kf6 {[%clk 0:00:27]} 39. Rxb7 {[%clk 0:00:12]}  Re5 {[%clk 0:00:20]} 40. Rb6 {[%clk 0:00:09]}  Rxc5 {[%clk 0:00:21]} 41. Rxa6 {[%clk 0:00:09]}  Rc2+ {[%clk 0:00:19]} 42. Kf3 {[%clk 0:00:09]}  Ke5 {[%clk 0:00:18]} 43. Ra5+ {[%clk 0:00:08]}  c5 {[%clk 0:00:19]} 44. a4 {[%clk 0:00:06]}  Kd4 {[%clk 0:00:18]} 45. Ra7 {[%clk 0:00:05]}  Rxh2 {[%clk 0:00:17]} 46. Ra5 {[%clk 0:00:05]}  Ra2 {[%clk 0:00:16]} 47. Ra7 {[%clk 0:00:05]}  h6 {[%clk 0:00:15]} 48. a5 {[%clk 0:00:04]}  c4 {[%clk 0:00:15]} 49. Rd7+ {[%clk 0:00:02]}  Kc5 {[%clk 0:00:15]} 50. Rc7+ {[%clk 0:00:02]}  Kb5 {[%clk 0:00:15]} 51. Kf4 {[%clk 0:00:02]}  Rxa5 {[%clk 0:00:15]} 52. Rc8 {[%clk 0:00:02]}  Kb4 {[%clk 0:00:14]} 0-1


[Site "https://www.chess.com"]

[Event "Titled Tuesday Blitz February 28 Early 2023"]
[White "Stijve, Theo"]
[Black "Md, Imran"]
[WhiteFideId "1331132"]
[BlackFideId "25748580"]
[WhiteElo "2256"]
[BlackElo "2217"]
[Result "1-0"]
[Round "10"]
[TimeControl "180+2"]
[Date "2023.02.28"]
[WhiteClock "0:00:28"]
[BlackClock "0:00:21"]

1. e4 {[%clk 0:03:00]}  c5 {[%clk 0:02:57]} 2. Nf3 {[%clk 0:03:01]}  Nc6 {[%clk 0:02:56]} 3. Nc3 {[%clk 0:03:00]}  e6 {[%clk 0:02:55]} 4. d4 {[%clk 0:03:00]}  cxd4 {[%clk 0:02:54]} 5. Nxd4 {[%clk 0:03:01]}  Nxd4 {[%clk 0:02:50]} 6. Qxd4 {[%clk 0:03:00]}  Ne7 {[%clk 0:02:51]} 7. Bg5 {[%clk 0:02:50]}  Nc6 {[%clk 0:02:46]} 8. Qd2 {[%clk 0:02:49]}  Qa5 {[%clk 0:02:40]} 9. O-O-O {[%clk 0:02:33]}  Bb4 {[%clk 0:02:38]} 10. h4 {[%clk 0:02:26]}  O-O {[%clk 0:02:31]} 11. Bc4 {[%clk 0:02:22]}  Bxc3 {[%clk 0:02:12]} 12. Qxc3 {[%clk 0:02:21]}  Qxc3 {[%clk 0:02:13]} 13. bxc3 {[%clk 0:02:22]}  f6 {[%clk 0:02:12]} 14. Be3 {[%clk 0:02:19]}  Ne5 {[%clk 0:02:08]} 15. Bb3 {[%clk 0:02:15]}  a5 {[%clk 0:02:08]} 16. a4 {[%clk 0:02:14]}  h5 {[%clk 0:02:01]} 17. Bc5 {[%clk 0:02:04]}  Re8 {[%clk 0:01:53]} 18. Rd6 {[%clk 0:01:56]}  Ra6 {[%clk 0:01:51]} 19. Rhd1 {[%clk 0:01:48]}  Rc6 {[%clk 0:01:50]} 20. Rxc6 {[%clk 0:01:42]}  bxc6 {[%clk 0:01:34]} 21. Bb6 {[%clk 0:01:37]}  Bb7 {[%clk 0:01:32]} 22. Bxa5 {[%clk 0:01:34]}  c5 {[%clk 0:01:29]} 23. Bc7 {[%clk 0:01:32]}  Bc6 {[%clk 0:01:12]} 24. Bxe5 {[%clk 0:01:24]}  fxe5 {[%clk 0:01:13]} 25. f3 {[%clk 0:01:22]}  c4 {[%clk 0:01:13]} 26. Bxc4 {[%clk 0:01:19]}  Bxa4 {[%clk 0:01:14]} 27. Bb3 {[%clk 0:01:16]}  Bc6 {[%clk 0:01:13]} 28. Rd6 {[%clk 0:01:16]}  Kf7 {[%clk 0:01:13]} 29. Kd2 {[%clk 0:01:11]}  g5 {[%clk 0:01:13]} 30. hxg5 {[%clk 0:01:09]}  Kg6 {[%clk 0:01:13]} 31. Bd5 {[%clk 0:01:00]}  Ba4 {[%clk 0:01:01]} 32. Ra6 {[%clk 0:00:58]}  Bb5 {[%clk 0:00:58]} 33. Rb6 {[%clk 0:00:57]}  Ba4 {[%clk 0:00:57]} 34. Bb3 {[%clk 0:00:56]}  Bc6 {[%clk 0:00:56]} 35. Bd5 {[%clk 0:00:56]}  Ba4 {[%clk 0:00:56]} 36. c4 {[%clk 0:00:54]}  Kxg5 {[%clk 0:00:56]} 37. Bb7 {[%clk 0:00:49]}  Kf4 {[%clk 0:00:52]} 38. Ra6 {[%clk 0:00:48]}  Rb8 {[%clk 0:00:42]} 39. Rxa4 {[%clk 0:00:48]}  Rxb7 {[%clk 0:00:42]} 40. Ra8 {[%clk 0:00:47]}  Rc7 {[%clk 0:00:40]} 41. Kd3 {[%clk 0:00:46]}  d6 {[%clk 0:00:36]} 42. Rh8 {[%clk 0:00:41]}  Kg3 {[%clk 0:00:35]} 43. Rxh5 {[%clk 0:00:40]}  Kxg2 {[%clk 0:00:36]} 44. Rh6 {[%clk 0:00:40]}  Re7 {[%clk 0:00:31]} 45. Rf6 {[%clk 0:00:40]}  Kg3 {[%clk 0:00:31]} 46. Kc3 {[%clk 0:00:39]}  Kh4 {[%clk 0:00:30]} 47. Kb4 {[%clk 0:00:36]}  Kg5 {[%clk 0:00:29]} 48. Rf8 {[%clk 0:00:37]}  Rb7+ {[%clk 0:00:30]} 49. Kc3 {[%clk 0:00:34]}  Rc7 {[%clk 0:00:29]} 50. Kd3 {[%clk 0:00:33]}  Kg6 {[%clk 0:00:28]} 51. Rd8 {[%clk 0:00:31]}  Rc6 {[%clk 0:00:28]} 52. Rd7 {[%clk 0:00:31]}  Kf6 {[%clk 0:00:28]} 53. Kc3 {[%clk 0:00:31]}  Rb6 {[%clk 0:00:28]} 54. Rc7 {[%clk 0:00:29]}  Rb1 {[%clk 0:00:21]} 55. Kd3 {[%clk 0:00:29]}  Rd1+ {[%clk 0:00:20]} 56. Ke2 {[%clk 0:00:28]}  Re1+ {[%clk 0:00:21]} 57. Kxe1 {[%clk 0:00:28]} 1-0


[Site "https://www.chess.com"]

[Event "Titled Tuesday Blitz February 28 Early 2023"]
[White "Maximov, Dmitry"]
[Black "Diaz Perez, Michel Alejandro"]
[WhiteFideId "14105659"]
[BlackFideId "3517179"]
[WhiteElo "2494"]
[BlackElo "2333"]
[Result "0-1"]
[Round "10"]
[TimeControl "180+2"]
[Date "2023.02.28"]
[WhiteClock "0:00:15"]
[BlackClock "0:00:29"]

1. e4 {[%clk 0:03:00]}  c6 {[%clk 0:02:58]} 2. Nf3 {[%clk 0:03:00]}  d5 {[%clk 0:02:59]} 3. Nc3 {[%clk 0:03:01]}  Bg4 {[%clk 0:02:57]} 4. h3 {[%clk 0:03:01]}  Bxf3 {[%clk 0:02:58]} 5. Qxf3 {[%clk 0:03:01]}  e6 {[%clk 0:02:57]} 6. d3 {[%clk 0:03:01]}  Nd7 {[%clk 0:02:56]} 7. Bd2 {[%clk 0:03:00]}  Bc5 {[%clk 0:02:52]} 8. Qg3 {[%clk 0:02:57]}  Bd4 {[%clk 0:02:47]} 9. Nd1 {[%clk 0:02:53]}  Ne7 {[%clk 0:02:40]} 10. c3 {[%clk 0:02:52]}  Bf6 {[%clk 0:02:41]} 11. h4 {[%clk 0:02:50]}  h5 {[%clk 0:02:31]} 12. f4 {[%clk 0:02:38]}  dxe4 {[%clk 0:02:29]} 13. dxe4 {[%clk 0:02:38]}  Ng6 {[%clk 0:02:21]} 14. Qf2 {[%clk 0:02:31]}  Bxh4 {[%clk 0:02:18]} 15. g3 {[%clk 0:02:31]}  Be7 {[%clk 0:02:15]} 16. Be3 {[%clk 0:02:22]}  Qa5 {[%clk 0:01:58]} 17. b4 {[%clk 0:02:03]}  Bxb4 {[%clk 0:01:49]} 18. cxb4 {[%clk 0:01:58]}  Qxb4+ {[%clk 0:01:50]} 19. Qd2 {[%clk 0:01:58]}  Qxe4 {[%clk 0:01:48]} 20. Bg2 {[%clk 0:01:58]}  Qa4 {[%clk 0:01:42]} 21. Nc3 {[%clk 0:01:51]}  Qa5 {[%clk 0:01:41]} 22. Ne4 {[%clk 0:01:49]}  Qxd2+ {[%clk 0:01:37]} 23. Kxd2 {[%clk 0:01:44]}  Ke7 {[%clk 0:01:37]} 24. Rab1 {[%clk 0:01:42]}  b6 {[%clk 0:01:36]} 25. Rbe1 {[%clk 0:01:32]}  Rad8 {[%clk 0:01:32]} 26. Kc2 {[%clk 0:01:30]}  Nf6 {[%clk 0:01:27]} 27. Nxf6 {[%clk 0:01:16]}  gxf6 {[%clk 0:01:28]} 28. Bd2 {[%clk 0:01:12]}  f5 {[%clk 0:01:14]} 29. Bc3 {[%clk 0:01:09]}  Rhg8 {[%clk 0:01:14]} 30. Bxc6 {[%clk 0:01:02]}  Rc8 {[%clk 0:01:12]} 31. Bf3 {[%clk 0:00:59]}  h4 {[%clk 0:01:07]} 32. gxh4 {[%clk 0:00:54]}  Nxf4 {[%clk 0:01:07]} 33. Rhg1 {[%clk 0:00:34]}  Rh8 {[%clk 0:01:00]} 34. h5 {[%clk 0:00:24]}  Nxh5 {[%clk 0:00:43]} 35. Kb3 {[%clk 0:00:23]}  Nf6 {[%clk 0:00:44]} 36. Bb4+ {[%clk 0:00:21]}  Ke8 {[%clk 0:00:39]} 37. Re3 {[%clk 0:00:20]}  Nd7 {[%clk 0:00:36]} 38. Rd1 {[%clk 0:00:17]}  Nc5+ {[%clk 0:00:35]} 39. Ka3 {[%clk 0:00:16]}  Ke7 {[%clk 0:00:35]} 40. Red3 {[%clk 0:00:15]}  Rhd8 {[%clk 0:00:35]} 41. Rxd8 {[%clk 0:00:15]}  Rxd8 {[%clk 0:00:36]} 42. Rxd8 {[%clk 0:00:15]}  Kxd8 {[%clk 0:00:37]} 43. Bxc5 {[%clk 0:00:16]}  bxc5 {[%clk 0:00:37]} 44. Kb3 {[%clk 0:00:16]}  e5 {[%clk 0:00:37]} 45. Kc4 {[%clk 0:00:16]}  e4 {[%clk 0:00:37]} 46. Bg2 {[%clk 0:00:16]}  Ke7 {[%clk 0:00:38]} 47. Kxc5 {[%clk 0:00:16]}  Kf6 {[%clk 0:00:38]} 48. Kc6 {[%clk 0:00:16]}  Ke5 {[%clk 0:00:37]} 49. a4 {[%clk 0:00:16]}  f4 {[%clk 0:00:37]} 50. Kb7 {[%clk 0:00:16]}  f3 {[%clk 0:00:38]} 51. Bh3 {[%clk 0:00:16]}  e3 {[%clk 0:00:37]} 52. Kxa7 {[%clk 0:00:13]}  e2 {[%clk 0:00:38]} 53. a5 {[%clk 0:00:14]}  e1=Q {[%clk 0:00:38]} 54. a6 {[%clk 0:00:14]}  f2 {[%clk 0:00:35]} 55. Kb7 {[%clk 0:00:14]}  f1=Q {[%clk 0:00:33]} 56. Bxf1 {[%clk 0:00:14]}  Qxf1 {[%clk 0:00:33]} 57. a7 {[%clk 0:00:15]}  Qf3+ {[%clk 0:00:33]} 58. Kb8 {[%clk 0:00:15]}  Qc6 {[%clk 0:00:29]} 0-1


[Site "https://www.chess.com"]